fUST/lending_fUST_20240220
["ID","MTS","AMOUNT","RATE_DAILY","PERIOD"]
[314522153,1708403445043,-433.86591432,0.00022191,2]
[314522155,1708403445052,-1442.75,0.00022191,2]
[314522157,1708403445061,-500.0,0.00022191,2]
[314522159,1708403445070,-500.0,0.00022191,2]
[314522161,1708403445080,-500.0,0.00022191,2]
[314522163,1708403445089,-600.38,0.00022191,2]
[314522165,1708403445098,-200.0,0.00022191,2]
[314522167,1708403445107,-589.48,0.00022191,2]
[314522169,1708403445117,-500.0,0.00022191,2]
[314522171,1708403445126,-500.0,0.00022191,2]
[314522173,1708403445136,-500.0,0.00022191,2]
[314522175,1708403445146,-500.0,0.00022191,2]
[314522177,1708403445155,-692.13,0.00022191,2]
[314522179,1708403445164,-500.0,0.00022191,2]
[314522181,1708403445173,-151.0,0.00022191,2]
[314522183,1708403445182,-500.0,0.00022191,2]
[314522185,1708403445190,-658.12,0.00022191,2]
[314522187,1708403445200,-500.0,0.00022191,2]
[314522189,1708403445209,-500.0,0.00022191,2]
[314522191,1708403445221,-500.0,0.00022191,2]
[314522193,1708403445230,-500.0,0.00022191,2]
[314522195,1708403445239,-500.0,0.00022191,2]
[314522197,1708403445248,-587.63,0.00022191,2]
[314522212,1708403445258,-500.0,0.00022191,2]
[314522214,1708403445385,-500.0,0.00022191,2]
[314522217,1708403445395,-500.0,0.00022191,2]
[314522219,1708403445404,-500.0,0.00022191,2]
[314522221,1708403445413,-500.0,0.00022191,2]
[314522223,1708403445421,-1318.63,0.00022191,2]
[314522225,1708403445430,-633.41,0.00022191,2]
[314522227,1708403445440,-500.0,0.00022191,2]
[314522229,1708403445448,-500.0,0.00022191,2]
[314522231,1708403445457,-500.0,0.00022191,2]
[314522233,1708403445466,-500.0,0.00022191,2]
[314522235,1708403445475,-500.0,0.00022191,2]
[314522237,1708403445484,-500.0,0.00022191,2]
[314522239,1708403445493,-500.0,0.00022191,2]
[314522241,1708403445502,-509.92662312,0.00022191,2]
[314522244,1708403445511,-500.0,0.00022191,2]
[314522245,1708403445520,-500.0,0.00022191,2]
[314522247,1708403445530,-168.92380778,0.00022191,2]
[314522250,1708403445539,-500.0,0.00022191,2]
[314522251,1708403445548,-500.0,0.00022191,2]
[314522253,1708403445557,-500.0,0.00022191,2]
[314522255,1708403445567,-500.0,0.00022191,2]
[314522257,1708403445577,-394.39198445,0.00022191,2]
[314522260,1708403445586,-500.0,0.00022191,2]
[314522262,1708403445595,-500.0,0.00022191,2]
[314522264,1708403445605,-614.53,0.00022191,2]
[314522266,1708403445614,-500.0,0.00022191,2]
[314522268,1708403445624,-504.92,0.00022191,2]
[314522270,1708403445633,-500.0,0.00022191,2]
[314522272,1708403445642,-1469.05,0.00022191,2]
[314522274,1708403445651,-500.0,0.00022191,2]
[314522276,1708403445660,-500.0,0.00022191,2]
[314522278,1708403445669,-500.0,0.00022191,2]
[314522280,1708403445679,-679.22,0.00022191,2]
[314522282,1708403445687,-500.0,0.00022191,2]
[314522284,1708403445696,-2652.34,0.00022191,2]
[314522286,1708403445705,-1364.78,0.00022191,2]
[314522288,1708403445714,-161.31716123,0.00022191,2]
[314522290,1708403445723,-506.73604209,0.00022191,2]
[314522292,1708403445733,-977.64,0.00022191,2]
[314522294,1708403445741,-509.03,0.00022191,2]
[314522296,1708403445751,-177.12066955,0.00022191,2]
[314522423,1708403447021,-289.8323,0.00020821,2]
[314522424,1708403447032,-372.29,0.00021907,3]
[314522425,1708403447044,-500.0,0.00021917,2]
[314522426,1708403447054,-500.0,0.00021917,2]
[314522427,1708403447065,-500.0,0.00021917,2]
[314522428,1708403447077,-3349.56,0.00021917,2]
[314522429,1708403447088,-500.0,0.00021917,2]
[314522430,1708403447098,-646.96432175,0.00021917,2]
[314522431,1708403447109,-500.24723348,0.00021917,2]
[314522434,1708403447120,-500.0,0.00021917,2]
[314522436,1708403447131,-577.33003737,0.00021917,2]
[314522438,1708403447141,-500.0,0.00021917,2]
[314522440,1708403447152,-500.0,0.00021917,2]
[314522442,1708403447163,-500.0,0.00021917,2]
[314522444,1708403447173,-500.0,0.00021917,2]
[314522446,1708403447184,-495.0,0.0002219,2]
[314522449,1708403447196,-587.62933045,0.00022191,2]
[314522451,1708403447207,-500.0,0.00022191,2]
[314522453,1708403447222,-500.0,0.00022191,2]
[314522455,1708403447232,-556.35,0.00022191,2]
[314522458,1708403447244,-500.0,0.00022191,2]
[314522460,1708403447255,-564.32,0.00022191,2]
[314522462,1708403447267,-688.01,0.00022191,2]
[314522464,1708403447278,-545.76,0.00022191,2]
[314522467,1708403447289,-494.11729994,0.00022191,2]
[314523274,1708404632209,-171.81213746,0.00020028,2]
[314523276,1708404632218,-27545.42615722,0.00020128,2]
[314523279,1708404632228,-5000.0,0.00020128,2]
[314523281,1708404632237,-2895.44803436,0.00020128,2]
[314523283,1708404632246,-5000.0,0.00020128,2]
[314523285,1708404632255,-607.04508717,0.00020128,2]
[314523287,1708404632267,-135.7999669,0.00020128,2]
[314523289,1708404632276,-174.27910979,0.00020128,2]
[314523338,1708404638219,-4825.72089021,0.00020128,2]
[314523340,1708404638228,-218.264053,0.00020794,2]
[314523342,1708404638237,-174.29147409,0.00021717,2]
[314523344,1708404638247,-310.24,0.00021807,3]
[314523345,1708404638257,-258.53,0.00021807,3]
[314523347,1708404638267,-181.0279602,0.00021815,2]
[314523350,1708404638282,-500.0,0.00021816,2]
[314523352,1708404638295,-228.14193046,0.00021816,2]
[314523355,1708404638309,-500.0,0.00021816,2]
[314523357,1708404638323,-500.0,0.00021816,2]
[314523358,1708404638335,-507.39371573,0.00021816,2]
[314523359,1708404638345,-500.0,0.00021816,2]
[314523360,1708404638358,-500.0,0.00021816,2]
[314523361,1708404638371,-500.0,0.00021816,2]
[314523362,1708404638383,-500.0,0.00021816,2]
[314523363,1708404638396,-500.0,0.00021816,2]
[314523364,1708404638409,-500.0,0.00021816,2]
[314523365,1708404638421,-500.0,0.00021816,2]
[314523366,1708404638434,-500.0,0.00021816,2]
[314523367,1708404638446,-575.15724279,0.00021816,2]
[314523368,1708404638456,-500.0,0.00021816,2]
[314523369,1708404638469,-486.42461494,0.00021816,2]
[314523370,1708404638481,-251404.07260733,0.00021817,2]
[314523371,1708404638493,-330.5031,0.00021915,2]
[314523372,1708404638505,-271.90117501,0.00021917,2]
[314523373,1708404638517,-500.0,0.00021917,2]
[314523374,1708404638529,-500.0,0.00021917,2]
[314523375,1708404638543,-500.0,0.00021917,2]
[314523376,1708404638554,-500.0,0.00021917,2]
[314523377,1708404638565,-500.0,0.00021917,2]
[314523379,1708404638577,-500.0,0.00021917,2]
[314523381,1708404638594,-500.0,0.00021917,2]
[314523384,1708404638607,-500.0,0.00021917,2]
[314523386,1708404638621,-500.0,0.00021917,2]
[314523388,1708404638632,-500.0,0.00021917,2]
[314523389,1708404638644,-500.0,0.00021917,2]
[314523390,1708404638656,-500.0,0.00021917,2]
[314523393,1708404638668,-500.0,0.00021917,2]
[314523395,1708404638679,-500.0,0.00021917,2]
[314523397,1708404638690,-500.0,0.00021917,2]
[314523400,1708404638704,-200.0,0.00021917,2]
[314523402,1708404638716,-500.0,0.00021917,2]
[314523404,1708404638729,-500.0,0.00021917,2]
[314523407,1708404638741,-619.01631419,0.00021917,2]
[314523409,1708404638754,-692.13,0.00021917,2]
[314523411,1708404638764,-500.0,0.00021917,2]
[314523413,1708404638774,-500.0,0.00021917,2]
[314523415,1708404638785,-500.0,0.00021917,2]
[314523418,1708404638795,-500.0,0.00021917,2]
[314523420,1708404638807,-500.0,0.00021917,2]
[314523422,1708404638819,-1180.37,0.00021917,2]
[314523424,1708404638830,-205.22485004,0.00021917,2]
[314523427,1708404638841,-500.0,0.00021917,2]
[314523429,1708404638853,-500.0,0.00021917,2]
[314523431,1708404638865,-581.27271086,0.00021917,2]
[314523433,1708404638875,-823.83,0.00021917,2]
[314523435,1708404638886,-500.0,0.00021917,2]
[314523438,1708404638896,-500.0,0.00021917,2]
[314523440,1708404638907,-500.0,0.00021917,2]
[314523442,1708404638919,-633.41,0.00021917,2]
[314523444,1708404638930,-506.0307741,0.00021917,2]
[314523447,1708404638943,-500.0,0.00021917,2]
[314523449,1708404638954,-500.0,0.00021917,2]
[314523451,1708404638965,-638.50059309,0.00021917,2]
[314523453,1708404638975,-435.37974217,0.00021917,2]
[314523455,1708404638985,-500.0,0.00021917,2]
[314523457,1708404638997,-500.0,0.00021917,2]
[314523460,1708404639008,-500.0,0.00021917,2]
[314523462,1708404639019,-500.0,0.00021917,2]
[314523464,1708404639031,-500.0,0.00021917,2]
[314523466,1708404639041,-649.41414066,0.00021917,2]
[314523468,1708404639053,-500.0,0.00021917,2]
[314523470,1708404639064,-500.0,0.00021917,2]
[314523473,1708404639075,-151.0,0.00021917,2]
[314523475,1708404639086,-500.0,0.00021917,2]
[314523477,1708404639097,-367.6358618,0.00021917,2]
[314523479,1708404639107,-500.0,0.00021917,2]
[314523481,1708404639120,-500.0,0.00021917,2]
[314523483,1708404639130,-500.0,0.00021917,2]
[314523486,1708404639141,-500.0,0.00021917,2]
[314523488,1708404639152,-500.0,0.00021917,2]
[314523490,1708404639163,-500.0,0.00021917,2]
[314523492,1708404639174,-155.5648918,0.00021917,2]
[314523494,1708404639185,-614.53,0.00021917,2]
[314523496,1708404639197,-501.91358117,0.00021917,2]
[314523499,1708404639208,-502.39129394,0.00021917,2]
[314523501,1708404639218,-174.94062732,0.00021917,2]
[314523503,1708404639229,-500.0,0.00021917,2]
[314523505,1708404639239,-500.0,0.00021917,2]
[314523507,1708404639250,-500.0,0.00021917,2]
[314523509,1708404639261,-340.36999735,0.00021917,2]
[314523511,1708404639272,-500.0,0.00021917,2]
[314523513,1708404639283,-500.0,0.00021917,2]
[314523516,1708404639294,-500.0,0.00021917,2]
[314523518,1708404639305,-200.91948973,0.00021917,2]
[314523520,1708404639316,-500.0,0.00021917,2]
[314523522,1708404639327,-500.0,0.00021917,2]
[314523524,1708404639338,-500.0,0.00021917,2]
[314523526,1708404639350,-1318.63,0.00021917,2]
[314523529,1708404639361,-502.71166011,0.00021917,2]
[314523531,1708404639375,-500.0,0.00021917,2]
[314523533,1708404639385,-500.0,0.00021917,2]
[314523535,1708404639397,-500.0,0.00021917,2]
[314523537,1708404639408,-2652.34,0.00021917,2]
[314523539,1708404639419,-1532.93,0.00021917,2]
[314523542,1708404639431,-500.0,0.00021917,2]
[314523544,1708404639443,-500.0,0.00021917,2]
[314523546,1708404639455,-500.0,0.00021917,2]
[314523548,1708404639467,-500.0,0.00021917,2]
[314523550,1708404639479,-521.16769814,0.00021917,2]
[314523552,1708404639490,-511.41914029,0.00021917,2]
[314523555,1708404639502,-511.20067672,0.00021917,2]
[314523557,1708404639513,-500.0,0.00021917,2]
[314523559,1708404639524,-500.0,0.00021917,2]
[314523561,1708404639535,-500.0,0.00021917,2]
[314523563,1708404639546,-500.0,0.00021917,2]
[314523565,1708404639556,-500.0,0.00021917,2]
[314523568,1708404639568,-516.8224327,0.00021917,2]
[314523570,1708404639580,-618.72073715,0.00021917,2]
[314523572,1708404639595,-500.0,0.00021917,2]
[314523574,1708404639605,-689.26,0.00021917,2]
[314523576,1708404639619,-254.20190655,0.00021917,2]
[314523578,1708404639631,-512.81045093,0.00021917,2]
[314523580,1708404639642,-500.0,0.00021917,2]
[314523583,1708404639653,-380.04705514,0.00021917,2]
[314523585,1708404639664,-500.0,0.00021917,2]
[314523587,1708404639675,-500.0,0.00021917,2]
[314523589,1708404639686,-235.64877881,0.00021917,2]
[314523591,1708404639697,-500.0,0.00021917,2]
[314523593,1708404639708,-500.0,0.00021917,2]
[314523595,1708404639719,-500.0,0.00021917,2]
[314523598,1708404639729,-509.75429243,0.00021917,2]
[314523600,1708404639741,-500.0,0.00021917,2]
[314523602,1708404639752,-1369.71,0.00021917,2]
[314523604,1708404639764,-500.0,0.00021917,2]
[314523606,1708404639775,-500.0,0.00021917,2]
[314523609,1708404639786,-500.0,0.00021917,2]
[314523611,1708404639796,-500.0,0.00021917,2]
[314523613,1708404639807,-500.0,0.00021917,2]
[314523615,1708404639818,-1000.0,0.00021917,2]
[314523617,1708404639829,-500.0,0.00021917,2]
[314523619,1708404639841,-500.0,0.00021917,2]
[314523621,1708404639852,-199.48520124,0.00021917,2]
[314523624,1708404639862,-500.0,0.00021917,2]
[314523626,1708404639876,-500.30083189,0.00021917,2]
[314523628,1708404639889,-500.0,0.00021917,2]
[314523630,1708404639901,-393.80992701,0.00021917,2]
[314523632,1708404639912,-500.0,0.00021917,2]
[314523634,1708404639922,-500.0,0.00021917,2]
[314523636,1708404639931,-169.84248541,0.00021917,2]
[314523638,1708404639941,-500.0,0.00021917,2]
[314523640,1708404639950,-553.16420902,0.00021917,2]
[314523642,1708404639959,-6063.56,0.00021917,2]
[314523669,1708404640189,-500.0,0.00021917,2]
[314523672,1708404640210,-501.64888846,0.00021917,2]
[314523674,1708404640220,-500.0,0.00021917,2]
[314523676,1708404640230,-500.0,0.00021917,2]
[314523679,1708404640240,-500.31519978,0.00021917,2]
[314523682,1708404640249,-500.0,0.00021917,2]
[314523685,1708404640258,-2841.34,0.00021917,2]
[314523687,1708404640268,-565.76980599,0.00021917,2]
[314523689,1708404640277,-500.0,0.00021917,2]
[314523691,1708404640287,-500.0,0.00021917,2]
[314523693,1708404640298,-500.0,0.00021917,2]
[314523695,1708404640307,-500.0,0.00021917,2]
[314523697,1708404640316,-500.0,0.00021917,2]
[314523699,1708404640325,-500.0,0.00021917,2]
[314523701,1708404640334,-500.7625867,0.00021917,2]
[314523703,1708404640343,-500.0,0.00021917,2]
[314523705,1708404640352,-500.0,0.00021917,2]
[314523708,1708404640391,-683.59,0.00021917,2]
[314523710,1708404640402,-545.66,0.00021917,2]
[314523712,1708404640412,-500.0,0.00021917,2]
[314523714,1708404640421,-1155.22,0.00021917,2]
[314523716,1708404640430,-500.0,0.00021917,2]
[314523718,1708404640439,-500.0,0.00021917,2]
[314523720,1708404640448,-500.0,0.00021917,2]
[314523722,1708404640457,-500.0,0.00021917,2]
[314523724,1708404640467,-226.50819615,0.00021917,2]
[314523726,1708404640475,-1505.47,0.00021917,2]
[314523728,1708404640484,-500.0,0.00021917,2]
[314523730,1708404640493,-615.11,0.00021917,2]
[314523732,1708404640502,-500.0,0.00021917,2]
[314523733,1708404640511,-569.39,0.00021917,2]
[314523736,1708404640521,-500.0,0.00021917,2]
[314523737,1708404640530,-583.03533122,0.00021917,2]
[314523739,1708404640539,-500.0,0.00021917,2]
[314523742,1708404640549,-500.0,0.00021917,2]
[314523743,1708404640558,-572.07,0.00021917,2]
[314523746,1708404640567,-500.0,0.00021917,2]
[314523748,1708404640578,-626.48,0.00021917,2]
[314523750,1708404640588,-500.0,0.00021917,2]
[314523752,1708404640599,-581.63580659,0.00021917,2]
[314523754,1708404640608,-500.0,0.00021917,2]
[314523756,1708404640619,-500.0,0.00021917,2]
[314523757,1708404640628,-500.0,0.00021917,2]
[314523759,1708404640637,-187.59170986,0.00021917,2]
[314523761,1708404640647,-500.0,0.00021917,2]
[314523764,1708404640657,-595.44,0.00021917,2]
[314523765,1708404640668,-500.34114932,0.00021917,2]
[314523768,1708404640679,-500.0,0.00021917,2]
[314523769,1708404640689,-500.0,0.00021917,2]
[314523771,1708404640698,-500.0,0.00021917,2]
[314523773,1708404640707,-501.37653749,0.00021917,2]
[314523775,1708404640715,-613.25055346,0.00021917,2]
[314523777,1708404640724,-500.0,0.00021917,2]
[314523779,1708404640733,-500.0,0.00021917,2]
[314523781,1708404640742,-500.0,0.00021917,2]
[314523783,1708404640751,-500.0,0.00021917,2]
[314523785,1708404640761,-500.0,0.00021917,2]
[314523787,1708404640769,-500.0,0.00021917,2]
[314523789,1708404640778,-500.0,0.00021917,2]
[314523791,1708404640787,-500.0,0.00021917,2]
[314523793,1708404640796,-500.0,0.00021917,2]
[314523795,1708404640805,-616.55982733,0.00021917,2]
[314523797,1708404640815,-500.0,0.00021917,2]
[314523799,1708404640824,-500.0,0.00021917,2]
[314523801,1708404640833,-497.82790785,0.00021917,2]
[314523803,1708404640842,-500.0,0.00021917,2]
[314523805,1708404640851,-500.0,0.00021917,2]
[314523807,1708404640860,-500.0,0.00021917,2]
[314523809,1708404640871,-500.0,0.00021917,2]
[314523811,1708404640880,-500.0,0.00021917,2]
[314523813,1708404640889,-500.0,0.00021917,2]
[314523815,1708404640899,-204.91601608,0.00021917,2]
[314523817,1708404640908,-587.63,0.00021917,2]
[314523819,1708404640917,-500.0,0.00021917,2]
[314523821,1708404640926,-500.0,0.00021917,2]
[314523823,1708404640935,-500.0,0.00021917,2]
[314523825,1708404640944,-500.0,0.00021917,2]
[314523827,1708404640954,-500.0,0.00021917,2]
[314523829,1708404640962,-430.97652315,0.00021917,2]
[314523831,1708404640972,-601.24999309,0.00021917,2]
[314523833,1708404640981,-500.0,0.00021917,2]
[314523835,1708404640990,-1286.21,0.00021917,2]
[314523837,1708404640999,-500.0,0.00021917,2]
[314523838,1708404641009,-500.0,0.00021917,2]
[314523840,1708404641018,-504.92,0.00021917,2]
[314523842,1708404641028,-500.0,0.00021917,2]
[314523845,1708404641037,-500.0,0.00021917,2]
[314523846,1708404641046,-500.0,0.00021917,2]
[314523848,1708404641055,-500.0,0.00021917,2]
[314523851,1708404641065,-500.0,0.00021917,2]
[314523852,1708404641073,-169.97417365,0.00021917,2]
[314523854,1708404641083,-500.0,0.00021917,2]
[314523856,1708404641092,-500.0,0.00021917,2]
[314523858,1708404641101,-500.0,0.00021917,2]
[314523861,1708404641111,-500.0,0.00021917,2]
[314523863,1708404641121,-500.0,0.00021917,2]
[314523865,1708404641130,-500.0,0.00021917,2]
[314523867,1708404641140,-500.0,0.00021917,2]
[314523869,1708404641149,-500.0,0.00021917,2]
[314523871,1708404641158,-1364.78,0.00021917,2]
[314523873,1708404641167,-500.0,0.00021917,2]
[314523875,1708404641176,-500.0,0.00021917,2]
[314523877,1708404641185,-500.0,0.00021917,2]
[314523879,1708404641195,-159.29680634,0.00021917,2]
[314523881,1708404641204,-500.0,0.00021917,2]
[314523882,1708404641213,-500.0,0.00021917,2]
[314523884,1708404641223,-500.0,0.00021917,2]
[314523885,1708404641232,-500.0,0.00021917,2]
[314523886,1708404641241,-500.0,0.00021917,2]
[314523887,1708404641250,-500.0,0.00021917,2]
[314523888,1708404641260,-500.0,0.00021917,2]
[314523889,1708404641269,-500.0,0.00021917,2]
[314523890,1708404641278,-1569.43,0.00021917,2]
[314523891,1708404641287,-500.0,0.00021917,2]
[314523892,1708404641298,-500.0,0.00021917,2]
[314523893,1708404641307,-500.0,0.00021917,2]
[314523894,1708404641316,-668.56,0.00021917,2]
[314523895,1708404641325,-500.0,0.00021917,2]
[314523896,1708404641334,-540.81,0.00021917,2]
[314523897,1708404641343,-500.0,0.00021917,2]
[314523898,1708404641353,-500.0,0.00021917,2]
[314523899,1708404641362,-500.0,0.00021917,2]
[314523900,1708404641372,-500.0,0.00021917,2]
[314523901,1708404641381,-500.0,0.00021917,2]
[314523903,1708404641390,-500.0,0.00021917,2]
[314523905,1708404641399,-500.0,0.00021917,2]
[314523907,1708404641408,-500.0,0.00021917,2]
[314523909,1708404641417,-500.0,0.00021917,2]
[314523911,1708404641426,-977.64,0.00021917,2]
[314523913,1708404641436,-500.0,0.00021917,2]
[314523915,1708404641445,-500.0,0.00021917,2]
[314523917,1708404641454,-500.0,0.00021917,2]
[314523919,1708404641463,-500.0,0.00021917,2]
[314523921,1708404641473,-509.03,0.00021917,2]
[314523923,1708404641481,-500.0,0.00021917,2]
[314523925,1708404641490,-500.0,0.00021917,2]
[314523927,1708404641499,-359.48313752,0.00021917,2]
[314523929,1708404641509,-526.19,0.00021917,2]
[314523931,1708404641518,-500.0,0.00021917,2]
[314523933,1708404641527,-646.7,0.00021917,2]
[314523935,1708404641536,-740.27,0.00021917,2]
[314523937,1708404641545,-500.0,0.00021917,2]
[314523939,1708404641554,-500.0,0.00021917,2]
[314523941,1708404641563,-500.0,0.00021917,2]
[314523943,1708404641572,-500.0,0.00021917,2]
[314523945,1708404641586,-5271.69,0.00021917,2]
[314523947,1708404641595,-533.17,0.00021917,2]
[314523949,1708404641604,-500.0,0.00021917,2]
[314523951,1708404641613,-500.0,0.00021917,2]
[314523953,1708404641623,-500.0,0.00021917,2]
[314523955,1708404641632,-500.0,0.00021917,2]
[314523957,1708404641642,-276.3982932,0.00021917,2]
[314523959,1708404641651,-500.0,0.00021917,2]
[314523961,1708404641661,-500.0,0.00021917,2]
[314523963,1708404641671,-500.0,0.00021917,2]
[314523965,1708404641680,-614.25051564,0.00021917,2]
[314523967,1708404641690,-500.0,0.00021917,2]
[314523969,1708404641699,-500.0,0.00021917,2]
[314523971,1708404641708,-205.51223501,0.00021917,2]
[314523973,1708404641717,-500.0,0.00021917,2]
[314523975,1708404641726,-500.0,0.00021917,2]
[314523977,1708404641735,-581.74,0.00021917,2]
[314523979,1708404641744,-500.0,0.00021917,2]
[314523981,1708404641753,-1164.57,0.00021917,2]
[314523983,1708404641762,-500.0,0.00021917,2]
[314523985,1708404641771,-2311.09,0.00021917,2]
[314523987,1708404641780,-500.0,0.00021917,2]
[314523989,1708404641789,-643.79,0.00021917,2]
[314523991,1708404641798,-500.0,0.00021917,2]
[314523993,1708404641806,-500.0,0.00021917,2]
[314523995,1708404641815,-500.0,0.00021917,2]
[314523997,1708404641824,-558.34197283,0.00021917,2]
[314523999,1708404641833,-303.07864421,0.00021917,2]
[314524001,1708404641842,-947.63,0.00021917,2]
[314524003,1708404641851,-500.36612508,0.00021917,2]
[314524005,1708404641859,-500.0,0.00021917,2]
[314524007,1708404641869,-353.59210513,0.00021917,2]
[314524009,1708404641878,-500.0,0.00021917,2]
[314524011,1708404641887,-500.0,0.00021917,2]
[314524013,1708404641896,-3209.99,0.00021917,2]
[314524015,1708404641906,-500.0,0.00021917,2]
[314524017,1708404641915,-722.25,0.00021917,2]
[314524019,1708404641924,-1000.0,0.00021917,2]
[314524021,1708404641933,-500.0,0.00021917,2]
[314524023,1708404641942,-522.64,0.00021917,2]
[314524025,1708404641951,-500.0,0.00021917,2]
[314524027,1708404641960,-500.0,0.00021917,2]
[314524029,1708404641969,-500.0,0.00021917,2]
[314524031,1708404641978,-500.0,0.00021917,2]
[314524033,1708404641989,-500.0,0.00021917,2]
[314524035,1708404641998,-500.0,0.00021917,2]
[314524037,1708404642007,-368.18852702,0.00021917,2]
[314524039,1708404642016,-500.0,0.00021917,2]
[314524041,1708404642025,-500.0,0.00021917,2]
[314524043,1708404642034,-500.0,0.00021917,2]
[314524045,1708404642043,-7169.62,0.00021917,2]
[314524047,1708404642052,-27698.49,0.00021917,2]
[314524049,1708404642062,-500.0,0.00021917,2]
[314524052,1708404642071,-500.0,0.00021917,2]
[314524054,1708404642080,-2774.41,0.00021917,2]
[314524056,1708404642090,-500.0,0.00021917,2]
[314524058,1708404642100,-500.0,0.00021917,2]
[314524060,1708404642109,-500.0,0.00021917,2]
[314524061,1708404642124,-2855.5,0.00021917,2]
[314524063,1708404642136,-500.0,0.00021917,2]
[314524065,1708404642147,-377.556933,0.00021917,2]
[314524067,1708404642158,-500.0,0.00021917,2]
[314524069,1708404642169,-500.0,0.00021917,2]
[314524071,1708404642180,-500.0,0.00021917,2]
[314524073,1708404642190,-1470.64,0.00021917,2]
[314524075,1708404642201,-500.0,0.00021917,2]
[314524077,1708404642212,-500.0,0.00021917,2]
[314524080,1708404642224,-506.50249164,0.00021917,2]
[314524081,1708404642235,-570.96925073,0.00021917,2]
[314524084,1708404642246,-500.0,0.00021917,2]
[314524086,1708404642257,-500.0,0.00021917,2]
[314524088,1708404642267,-500.0,0.00021917,2]
[314524090,1708404642279,-500.0,0.00021917,2]
[314524092,1708404642289,-500.0,0.00021917,2]
[314524094,1708404642300,-528.36434061,0.00021917,2]
[314524096,1708404642310,-500.0,0.00021917,2]
[314524098,1708404642320,-500.0,0.00021917,2]
[314524100,1708404642330,-500.0,0.00021917,2]
[314524102,1708404642339,-500.0,0.00021917,2]
[314524104,1708404642349,-500.0,0.00021917,2]
[314524106,1708404642358,-500.0,0.00021917,2]
[314524108,1708404642372,-500.0,0.00021917,2]
[314524110,1708404642381,-500.0,0.00021917,2]
[314524112,1708404642390,-500.0,0.00021917,2]
[314524114,1708404642401,-500.0,0.00021917,2]
[314524116,1708404642410,-500.0,0.00021917,2]
[314524118,1708404642419,-500.0,0.00021917,2]
[314524120,1708404642428,-500.0,0.00021917,2]
[314524122,1708404642437,-500.0,0.00021917,2]
[314524124,1708404642446,-500.0,0.00021917,2]
[314524126,1708404642455,-18207.2,0.00021917,2]
[314524128,1708404642463,-500.0,0.00021917,2]
[314524130,1708404642472,-500.0,0.00021917,2]
[314524132,1708404642481,-500.0,0.00021917,2]
[314524134,1708404642490,-13124.06,0.00021917,2]
[314524136,1708404642500,-500.0,0.00021917,2]
[314524138,1708404642509,-500.0,0.00021917,2]
[314524140,1708404642518,-598.33769882,0.00021917,2]
[314524142,1708404642528,-664.66,0.00021917,2]
[314524144,1708404642537,-500.0,0.00021917,2]
[314524146,1708404642546,-792.12,0.00021917,2]
[314524147,1708404642555,-17887.03,0.00021917,2]
[314524150,1708404642565,-4150.03,0.00021917,2]
[314524152,1708404642577,-500.0,0.00021917,2]